bitfinex/quotes_SOLUSD_20251019
["timestamp","ask_amount","ask_price","bid_price","bid_amount"]
[1760873595172,0.86,189.56,189.55,27.69188842]
[1760873595761,0.2,189.56,189.55,38.56836363]
[1760873595946,0.2,189.56,189.55,38.42620206]
[1760873596346,0.2,189.56,189.55,11.54620206]
[1760873596562,0.2,189.56,189.55,38.42620206]
[1760873597241,0.2,189.56,189.55,72.74620206]
[1760873597446,0.2,189.56,189.55,99.62620206]
[1760873597646,0.2,189.56,189.55,72.74620206]
[1760873598265,0.2,189.56,189.55,99.62620206]
[1760873599373,0.2,189.64,189.57,61.0]
[1760873599550,0.2,189.64,189.58,0.5274818]
[1760873599871,0.2,189.64,189.59,26.88]
[1760873600056,0.66,189.63,189.6,0.52742616]
[1760873600668,0.66,189.63,189.6,61.52742616]
[1760873600869,0.66,189.62,189.61,26.88]
[1760873601176,0.66,189.62,189.61,87.88]
[1760873601472,0.66,189.62,189.61,88.40739834]
[1760873601966,0.66,189.62,189.61,61.52739834]
[1760873602159,0.66,189.62,189.61,88.40739834]
[1760873602461,0.66,189.62,189.61,61.52739834]
[1760873602670,0.66,189.62,189.61,87.88]
[1760873602857,0.86,189.64,189.61,87.88]
[1760873603051,0.66,189.63,189.62,0.52737053]
[1760873603353,0.66,189.63,189.62,61.81169367]
[1760873603558,0.66,189.63,189.62,0.52737053]
[1760873603752,0.66,189.63,189.62,26.86]
[1760873604361,0.66,189.63,189.62,27.14432314]
[1760873606071,0.2,189.64,189.62,27.14432314]
[1760873606252,0.2,189.64,189.63,0.81166586]
[1760873606660,0.86,189.64,189.63,0.81166586]
[1760873608171,0.86,189.64,189.63,0.52734272]
[1760873608872,0.86,189.64,189.63,61.52734272]
[1760873609773,0.86,189.64,189.63,61.81166586]
[1760873610870,0.86,189.64,189.63,61.52734272]
[1760873611173,0.86,189.64,189.63,88.40734272]
[1760873612363,0.2,189.64,189.63,88.69166586]
[1760873613857,0.86,189.64,189.63,88.69166586]
[1760873614272,0.2,189.64,189.63,88.69166586]
[1760873614956,0.86,189.64,189.63,88.40734272]
[1760873615269,0.86,189.64,189.63,88.38734272]
[1760873615854,0.86,189.64,189.63,87.86]
[1760873616484,0.86,189.64,189.63,88.38734272]
[1760873617775,0.86,189.64,189.63,87.86]
[1760873622880,0.86,189.64,189.63,60.28]
[1760873623079,0.86,189.64,189.63,87.12]
[1760873626488,0.86,189.64,189.63,87.14]
[1760873628274,0.86,189.64,189.6,60.28]
[1760873628489,0.86,189.64,189.61,26.86]
[1760873628490,0.72,189.63,189.61,26.86]
[1760873628674,0.72,189.62,189.61,26.86]
[1760873629485,0.2,189.64,189.61,87.66739834]
[1760873629678,4.7675,189.73,189.62,0.28432314]
[1760873629877,4.7675,189.73,189.63,0.52734272]
[1760873629878,22.88,189.7,189.63,0.52734272]
[1760873630180,22.88,189.7,189.64,26.86]
[1760873630379,22.88,189.7,189.65,0.5272871]
[1760873631393,22.88,189.7,189.64,27.38731491]
[1760873631589,10.87647521,189.69,189.63,0.52734272]
[1760873631790,22.88,189.69,189.64,26.88]
[1760873632096,0.72,189.68,189.64,26.88]
[1760873632795,0.72,189.68,189.6,60.80742616]
[1760873632994,0.72,189.68,189.61,26.88]
[1760873633383,0.72,189.68,189.6,60.80742616]
[1760873633692,0.72,189.68,189.62,26.88]
[1760873634397,0.72,189.68,189.57,60.28]
[1760873634695,0.72,189.68,189.58,27.4074818]
[1760873635687,22.88,189.64,189.57,60.28]
[1760873635884,22.88,189.64,189.58,26.88]
[1760873636895,22.88,189.64,189.58,60.28]
[1760873637092,22.88,189.64,189.59,26.88]
[1760873637285,0.72,189.63,189.59,26.88]
[1760873637485,0.72,189.62,189.6,26.88]
[1760873637688,0.72,189.61,189.6,26.88]
[1760873637894,0.72,189.61,189.58,60.28]
[1760873638087,0.72,189.61,189.59,26.88]
[1760873638282,0.72,189.61,189.6,26.88]
[1760873639092,22.88,189.62,189.6,26.88]
[1760873639605,23.6,189.62,189.6,26.88]
[1760873640998,22.88,189.62,189.6,26.88]
[1760873641314,10.87647521,189.65,189.6,26.88]
[1760873641478,0.72,189.66,189.58,60.28]
[1760873641687,22.88,189.66,189.58,60.28]
[1760873641894,22.88,189.66,189.59,26.88]
[1760873642097,10.87647521,189.69,189.59,26.88]
[1760873642296,22.88,189.66,189.59,26.88]
[1760873642490,10.87647521,189.69,189.59,26.88]
[1760873643086,10.87647521,189.65,189.59,26.88]
[1760873643294,22.88,189.62,189.6,26.88]
[1760873643497,22.88,189.62,189.61,26.88]
[1760873643689,22.88,189.62,189.52,61.50764879]
[1760873643885,22.88,189.58,189.53,26.88]
[1760873644504,22.88,189.58,189.54,26.88]
[1760873644702,22.88,189.58,189.55,26.88]
[1760873644908,22.88,189.58,189.52,60.98]
[1760873645210,22.88,189.61,189.53,0.52762095]
[1760873645591,0.72,189.65,189.54,26.88]
[1760873645805,22.88,189.61,189.55,0.52756528]
[1760873646000,22.88,189.61,189.55,60.80756528]
[1760873646201,22.88,189.61,189.56,26.88]
[1760873646405,11.16079835,189.68,189.57,26.88]
[1760873646692,22.88,189.65,189.58,26.88]
[1760873647115,22.88,189.65,189.57,60.28]
[1760873647290,22.88,189.65,189.59,26.88]
[1760873647607,22.88,189.65,189.57,60.28]
[1760873647791,22.88,189.65,189.58,26.88]
[1760873648717,22.88,189.65,189.59,26.88]
[1760873648890,22.88,189.65,189.56,1.22753745]
[1760873649096,22.88,189.65,189.57,26.88]
[1760873649409,22.88,189.65,189.58,27.58]
[1760873649594,22.88,189.65,189.58,0.7]
[1760873649912,22.88,189.65,189.59,26.86]
[1760873650313,0.72,189.69,189.6,0.67]
[1760873650495,10.87647521,189.72,189.61,0.52739834]
[1760873650813,10.87647521,189.72,189.62,27.55]
[1760873651318,11.53647521,189.72,189.62,27.55]
[1760873651811,11.53647521,189.72,189.62,0.67]
[1760873652006,22.88,189.69,189.63,26.86]
[1760873652212,22.88,189.7,189.64,0.67]
[1760873652413,0.66,189.72,189.64,0.67]
[1760873652628,4.7675,189.73,189.65,0.5272871]
[1760873652816,4.7675,189.73,189.66,0.67]
[1760873653125,27.6475,189.73,189.67,27.3872315]
[1760873653305,27.6475,189.73,189.68,0.81216157]
[1760873653502,4.7675,189.73,189.67,88.7872315]
[1760873653907,4.7675,189.73,189.67,61.9272315]
[1760873654223,4.7675,189.73,189.68,26.88]
[1760873654425,4.7675,189.73,189.68,27.55]
[1760873654629,0.66,189.72,189.69,26.88]
[1760873654928,23.54,189.71,189.7,26.88]
[1760873655105,23.54,189.71,189.68,26.9]
[1760873655314,0.66,189.7,189.67,26.9]
[1760873656316,22.88,189.71,189.67,26.9]
[1760873656614,22.88,189.71,189.68,26.9]
[1760873658113,23.54,189.71,189.68,26.9]
[1760873658419,22.88,189.71,189.68,26.9]
[1760873659021,23.54,189.71,189.68,26.9]
[1760873659218,0.66,189.7,189.68,26.9]
[1760873660033,0.66,189.69,189.62,0.67]
[1760873660334,0.66,189.69,189.63,26.88]
[1760873660936,10.87647521,189.69,189.63,61.4]
[1760873661234,22.88,189.67,189.64,26.88]
[1760873661418,23.54,189.67,189.64,26.88]
[1760873662638,23.54,189.66,189.64,26.88]
[1760873662814,23.54,189.66,189.63,61.4]
[1760873662815,0.66,189.65,189.63,61.4]
[1760873663018,0.66,189.65,189.63,26.88]
[1760873663241,22.88,189.66,189.63,26.88]
[1760873663532,22.88,189.7,189.64,0.67]
[1760873663739,22.88,189.7,189.64,62.07]
[1760873663919,23.54,189.7,189.64,62.07]
[1760873664121,22.88,189.66,189.64,61.4]
[1760873664433,23.54,189.66,189.65,26.88]
[1760873665035,22.88,189.66,189.65,26.88]
[1760873665344,23.54,189.66,189.62,26.88]
[1760873665634,0.66,189.65,189.62,26.88]
[1760873665836,0.66,189.64,189.62,26.88]
[1760873666912,22.88,189.66,189.62,26.88]
[1760873667130,22.88,189.66,189.62,27.55]
[1760873667516,22.88,189.66,189.62,26.88]
[1760873667717,22.88,189.66,189.63,0.67]
[1760873668118,22.88,189.66,189.62,26.88]
[1760873668119,22.88,189.66,189.64,0.67]
[1760873668421,10.87647521,189.7,189.64,0.67]
[1760873668825,22.88,189.67,189.64,0.67]
[1760873669026,0.66,189.71,189.65,0.67]
[1760873669543,22.88,189.7,189.65,0.67]
[1760873669745,23.54,189.7,189.65,0.67]
[1760873671246,22.88,189.7,189.62,26.88]
[1760873671448,0.66,189.69,189.62,26.88]
[1760873671753,0.66,189.68,189.62,26.88]
[1760873672043,0.66,189.68,189.63,0.67]
[1760873672246,0.66,189.68,189.64,0.67]
[1760873672749,0.66,189.68,189.64,62.07]
[1760873673350,23.54,189.7,189.64,61.4]
[1760873673555,22.88,189.7,189.65,0.67]
[1760873673871,23.54,189.7,189.65,0.67]
[1760873674025,23.54,189.7,189.64,61.4]
[1760873674345,23.54,189.7,189.65,0.67]
[1760873674944,22.88,189.7,189.66,0.67]
[1760873675145,22.88,189.7,189.67,26.86]
[1760873675355,22.88,189.7,189.68,0.67]
[1760873675541,22.88,189.7,189.68,62.07]
[1760873675748,22.88,189.7,189.68,61.4]
[1760873676051,16.30397521,189.73,189.69,0.67]
[1760873676052,4.7675,189.73,189.69,0.67]
[1760873676237,4.7675,189.73,189.7,0.67]
[1760873676442,22.88,189.72,189.68,62.07]
[1760873676643,22.88,189.7,189.68,62.07]
[1760873676843,22.88,189.7,189.69,0.67]
[1760873678439,4.7675,189.73,189.69,0.67]
[1760873678953,27.6475,189.73,189.7,0.67]
[1760873679258,27.6475,189.73,189.68,0.67]
[1760873679452,27.6475,189.73,189.69,0.67]
[1760873679758,0.66,189.72,189.67,27.53]
[1760873679951,0.66,189.71,189.67,27.53]
[1760873680254,0.66,189.71,189.67,26.86]
[1760873680551,4.7675,189.73,189.67,26.86]
[1760873680758,0.66,189.7,189.67,26.86]
[1760873680950,0.66,189.72,189.67,26.86]
[1760873681152,4.7675,189.73,189.67,27.53]
[1760873681153,0.66,189.71,189.67,27.53]
[1760873682240,22.88,189.69,189.65,0.67]
[1760873682444,23.54,189.69,189.66,26.86]
[1760873682949,22.88,189.69,189.67,0.67]
[1760873683645,22.88,189.69,189.68,0.67]
[1760873684460,22.88,189.69,189.66,27.53]
[1760873684670,22.88,189.69,189.67,0.67]
[1760873685036,22.88,189.69,189.66,26.86]
[1760873685352,22.88,189.69,189.67,0.67]
[1760873685558,22.88,189.7,189.67,0.67]
[1760873685750,22.88,189.7,189.66,26.86]
[1760873686070,22.88,189.7,189.68,0.67]
[1760873687166,4.7675,189.73,189.62,61.92737053]
[1760873687342,23.57,189.69,189.64,0.67]
[1760873687659,0.69,189.68,189.64,62.07]
[1760873688059,22.88,189.7,189.65,0.67]
[1760873688254,22.88,189.7,189.66,0.67]
[1760873688556,22.88,189.7,189.67,26.86]
[1760873688965,22.88,189.71,189.68,0.67]
[1760873689165,22.88,189.7,189.69,0.67]
[1760873689550,22.88,189.7,189.68,61.4]
[1760873689752,22.88,189.7,189.68,62.07]
[1760873690264,22.88,189.7,189.68,61.4]
[1760873690455,5.4575,189.73,189.69,0.67]
[1760873690648,22.88,189.7,189.69,0.67]
[1760873691049,22.88,189.7,189.68,61.4]
[1760873691252,0.69,189.7,189.69,26.84]
[1760873691952,4.7675,189.73,189.69,26.84]
[1760873692150,22.88,189.7,189.69,26.84]
[1760873693757,22.88,189.69,189.68,61.4]
[1760873693959,23.57,189.69,189.68,88.24]
[1760873694267,22.88,189.69,189.68,88.24]
[1760873696379,22.88,189.7,189.68,88.24]
[1760873700274,22.88,189.7,189.68,88.91]
[1760873700568,22.88,189.7,189.69,0.67]
[1760873701147,22.88,189.7,189.68,88.24]
[1760873701345,22.88,189.7,189.69,0.67]
[1760873701968,23.57,189.7,189.68,61.4]
[1760873702172,0.69,189.69,189.68,61.4]
[1760873702378,0.69,189.69,189.68,88.24]
[1760873704158,0.69,189.69,189.68,61.4]
[1760873704363,22.88,189.65,189.62,62.07]
[1760873704563,22.88,189.65,189.63,26.84]
[1760873704758,22.88,189.65,189.63,27.51]
[1760873704973,22.88,189.65,189.64,0.67]
[1760873705381,22.88,189.65,189.63,26.84]
[1760873705579,23.57,189.65,189.63,26.84]
[1760873705769,0.69,189.64,189.63,26.84]
[1760873706276,22.88,189.65,189.63,26.84]
[1760873708908,22.88,189.65,189.63,27.51]
[1760873709381,0.69,189.64,189.58,0.67]
[1760873709677,0.69,189.64,189.59,26.84]
[1760873709890,0.69,189.63,189.59,26.84]
[1760873710078,22.88,189.65,189.59,26.84]
[1760873710256,0.66,189.64,189.59,26.84]
[1760873710575,0.66,189.63,189.59,26.84]
[1760873710770,22.88,189.61,189.59,27.49]
[1760873710983,22.88,189.61,189.6,0.65]
[1760873711184,22.88,189.64,189.6,0.65]
[1760873711386,23.54,189.64,189.6,0.65]
[1760873711579,23.54,189.64,189.61,26.84]
[1760873711977,16.00217055,189.69,189.61,26.84]
[1760873711978,11.53647521,189.63,189.61,26.84]
[1760873712286,22.88,189.6,189.57,0.65]
[1760873712581,22.88,189.6,189.58,27.49]
[1760873713175,22.88,189.6,189.58,26.84]
[1760873715784,22.88,189.6,189.55,26.84]
[1760873716084,22.88,189.6,189.57,0.68]
[1760873717082,23.56,189.6,189.55,27.52]
[1760873717273,22.88,189.6,189.56,0.68]
[1760873717466,22.88,189.6,189.57,0.68]
[1760873718174,22.88,189.6,189.55,26.84]
[1760873718384,23.56,189.6,189.56,0.68]
[1760873720299,0.68,189.59,189.55,27.52]
[1760873720685,22.88,189.6,189.55,26.84]
[1760873721013,0.68,189.59,189.55,26.84]
[1760873721178,0.68,189.58,189.55,26.84]
[1760873721590,22.88,189.6,189.56,26.86]
[1760873721894,0.68,189.59,189.56,26.86]
[1760873722101,22.88,189.6,189.56,27.54]
[1760873722287,23.56,189.6,189.56,27.54]
[1760873722598,23.56,189.6,189.56,26.86]
[1760873722782,22.88,189.6,189.57,0.68]
[1760873723392,22.88,189.6,189.58,0.68]
[1760873723775,22.88,189.63,189.59,0.68]
[1760873723989,23.56,189.63,189.6,26.86]
[1760873724289,0.68,189.62,189.6,26.86]
[1760873724988,0.68,189.61,189.54,0.68]
[1760873725293,0.68,189.61,189.55,26.86]
[1760873725494,0.68,189.6,189.55,26.86]
[1760873725681,0.68,189.59,189.55,27.54]
[1760873725881,0.68,189.59,189.55,88.94]
[1760873726488,22.88,189.6,189.56,0.68]
[1760873726678,22.88,189.6,189.56,61.4]
[1760873726874,23.56,189.6,189.56,61.4]
[1760873727091,22.88,189.6,189.56,61.4]
[1760873727290,0.68,189.59,189.56,61.4]
[1760873728093,22.88,189.6,189.56,61.4]
[1760873728298,23.56,189.6,189.56,62.08]
[1760873728491,22.88,189.57,189.56,62.08]
[1760873728693,22.88,189.57,189.56,61.4]
[1760873729396,22.88,189.57,189.52,26.86]
[1760873729397,22.88,189.56,189.52,26.86]
[1760873729602,22.88,189.56,189.53,0.68]
[1760873729790,22.88,189.56,189.54,0.68]
[1760873730404,5.27565286,189.55,189.54,0.68]
[1760873732485,18.46478501,189.55,189.52,26.86]
[1760873732691,18.46478501,189.55,189.53,0.68]
[1760873734180,18.46478501,189.55,189.52,26.86]
[1760873734586,0.68,189.54,189.5,0.68]
[1760873734798,41.34478501,189.55,189.51,0.68]
[1760873734994,42.02478501,189.55,189.51,0.68]
[1760873735806,22.88,189.53,189.52,0.68]
[1760873736401,26.37269898,189.59,189.52,0.68]
[1760873736402,44.83358826,189.59,189.53,0.68]
[1760873736601,22.88,189.56,189.53,27.54]
[1760873736900,22.88,189.56,189.54,0.68]
[1760873737089,22.88,189.56,189.55,0.68]
[1760873739309,41.34381092,189.56,189.53,88.78762095]
[1760873739500,41.34381092,189.56,189.54,0.68]
[1760873739900,42.02381092,189.56,189.53,61.4]
[1760873740207,0.68,189.55,189.5,0.68]
[1760873740391,0.68,189.54,189.48,0.88]
[1760873740792,68.40068367,189.56,189.49,0.68]
[1760873742915,67.72068367,189.56,189.5,0.52770448]
[1760873743208,44.84068367,189.56,189.51,0.68]
[1760873743511,18.46770788,189.52,189.48,0.2]
[1760873743898,0.66,189.51,189.48,16.06336356]
[1760873744100,0.66,189.51,189.48,0.2]
[1760873745610,5.27704485,189.5,189.48,0.2]
[1760873746516,19.12770788,189.52,189.48,0.2]
[1760873746830,0.66,189.51,189.48,61.6]
[1760873746994,22.88,189.49,189.48,62.32]
[1760873747195,41.34770788,189.52,189.48,62.32]
[1760873747723,42.00770788,189.52,189.48,62.32]
[1760873748711,18.46770788,189.52,189.49,1.24773233]
[1760873749017,18.46770788,189.52,189.5,0.72]
[1760873749220,18.46770788,189.52,189.48,61.6]
[1760873749221,19.12770788,189.52,189.48,62.12776018]
[1760873749522,19.12770788,189.52,189.48,62.32]
[1760873750294,19.12770788,189.52,189.48,61.6]
[1760873750906,18.46770788,189.52,189.48,61.6]
[1760873751115,18.46770788,189.52,189.49,0.72]
[1760873751515,18.46770788,189.52,189.48,61.6]
[1760873751697,18.46770788,189.52,189.49,0.72]
[1760873752505,18.46770788,189.52,189.5,0.72]
[1760873752697,5.27648796,189.52,189.51,0.52767663]
[1760873752998,5.27648796,189.52,189.51,1.24767663]
[1760873753201,5.2759312,189.54,189.51,62.64767663]
[1760873753415,5.2759312,189.54,189.52,0.72]
[1760873753617,5.2759312,189.54,189.53,0.52762095]
[1760873753815,5.2759312,189.54,189.52,61.4]
[1760873754207,5.93620957,189.53,189.52,61.4]
[1760873754703,28.81620957,189.53,189.52,61.4]
[1760873756429,5.2759312,189.54,189.52,61.4]
[1760873756632,5.9359312,189.54,189.52,61.4]
[1760873758125,5.2759312,189.54,189.52,61.4]
[1760873758325,5.9359312,189.54,189.52,61.4]
[1760873758513,19.1257592,189.54,189.49,62.12]
[1760873758822,19.1257592,189.54,189.5,0.72]
[1760873759526,13.189828,189.54,189.51,0.72]
[1760873759729,13.189828,189.54,189.52,0.72]
[1760873761399,13.189828,189.54,189.5,0.52770448]
[1760873761604,13.189828,189.54,189.51,0.72]
[1760873762029,13.189828,189.54,189.52,0.72]
[1760873762205,13.189828,189.54,189.5,1.24770448]
[1760873762407,13.189828,189.54,189.51,0.72]
[1760873763439,0.66,189.53,189.49,61.4]
[1760873763813,0.66,189.52,189.49,61.4]
[1760873764013,0.66,189.51,189.49,61.4]
[1760873764215,0.66,189.5,189.49,61.4]
[1760873765912,5.93704485,189.5,189.49,61.4]
[1760873767326,28.81704485,189.5,189.48,0.2]
[1760873767806,28.81704485,189.5,189.48,1e-08]
[1760873770038,22.88,189.49,189.48,1e-08]
[1760873770544,23.6,189.49,189.48,1e-08]
[1760873772638,28.87732334,189.49,189.48,1e-08]
[1760873773926,68.45724839,189.49,189.44,1e-08]
[1760873774227,22.88,189.45,189.43,1e-08]
[1760873774534,22.88,189.41,189.37,0.2]
[1760873774742,18.47940865,189.4,189.37,0.2]
[1760873774912,22.88,189.38,189.37,0.2]
[1760873776459,22.88,189.38,189.37,0.92]
[1760873776736,28.16038863,189.38,189.37,0.92]
[1760873776943,5.28038863,189.38,189.37,0.92]
[1760873778734,13.19957761,189.4,189.37,0.92]
[1760873778938,13.19957761,189.4,189.38,1.24803886]
[1760873779230,13.19957761,189.4,189.39,0.72]
[1760873779825,13.19957761,189.4,189.39,29.04472583]
[1760873780052,5.27760185,189.48,189.39,1.24801098]
[1760873780256,5.27760185,189.48,189.4,0.72]
[1760873780547,5.27620957,189.53,189.42,10.87647521]
[1760873780749,5.27620957,189.53,189.44,10.87647521]
[1760873781051,5.27620957,189.53,189.46,10.87647521]
[1760873781221,13.18748869,189.58,189.48,10.87647521]
[1760873781424,0.69,189.59,189.48,10.87647521]
[1760873781425,5.27509627,189.57,189.5,10.87647521]
[1760873781620,18.45926484,189.61,189.52,10.87647521]
[1760873781847,18.45926484,189.61,189.53,1.24762095]
[1760873782147,18.45926484,189.61,189.54,0.72]
[1760873782336,18.45926484,189.61,189.55,0.52756528]
[1760873782530,18.45926484,189.61,189.56,0.72]
[1760873782756,0.69,189.6,189.53,0.52762095]
[1760873783130,22.88,189.58,189.52,0.52764879]
[1760873783331,23.57,189.58,189.52,0.52764879]
[1760873783525,22.88,189.57,189.48,0.72]
[1760873783828,22.88,189.57,189.48,1.24776018]
[1760873784148,19.15381092,189.56,189.49,0.72]
[1760873784442,18.46381092,189.56,189.5,0.52770448]
[1760873784621,18.46381092,189.56,189.51,0.72]
[1760873784826,18.46381092,189.56,189.52,0.52764879]
[1760873785447,18.46381092,189.56,189.49,0.52773233]
[1760873785448,0.69,189.55,189.49,0.52773233]
[1760873785824,18.46381092,189.56,189.49,1.24773233]
[1760873786031,18.46381092,189.56,189.5,0.72]
[1760873786229,18.46381092,189.56,189.51,0.52767663]
[1760873786455,19.15381092,189.56,189.51,1.24767663]
[1760873786746,19.15381092,189.56,189.51,0.72]
[1760873786927,18.46381092,189.56,189.47,10.87647521]
[1760873787128,19.15381092,189.56,189.48,1.24776018]
[1760873787347,19.15381092,189.56,189.49,0.72]
[1760873787549,19.15381092,189.56,189.5,0.52770448]
[1760873790331,18.46381092,189.56,189.51,0.72]
[1760873790534,18.46381092,189.56,189.52,0.52764879]
[1760873790757,5.27537455,189.56,189.53,0.72]
[1760873791850,41.34186305,189.58,189.53,0.72]
[1760873792028,0.69,189.57,189.52,0.52764879]
[1760873792233,0.69,189.57,189.5,0.52770448]
[1760873793043,0.69,189.57,189.48,0.52776018]
[1760873793965,18.46381092,189.56,189.48,62.64776018]
[1760873794264,0.69,189.55,189.48,62.64776018]
[1760873794629,5.27537455,189.56,189.49,0.72]
[1760873794842,5.27537455,189.56,189.51,10.87647521]
[1760873795070,5.27537455,189.56,189.52,1.24764879]
[1760873795241,5.27537455,189.56,189.53,0.72]
[1760873795440,5.27503345,189.58,189.54,1.24759312]
[1760873795648,5.27503345,189.58,189.55,0.72]
[1760873795859,18.46128412,189.59,189.56,1.24753745]
[1760873796542,18.46128412,189.59,189.56,0.52753745]
[1760873796753,18.46128412,189.59,189.55,0.52756528]
[1760873796942,18.46128412,189.59,189.55,1.24756528]
[1760873797136,0.69,189.58,189.55,0.52756528]
[1760873797468,0.69,189.57,189.5,27.36770448]
[1760873797640,0.69,189.56,189.5,27.36770448]
[1760873797841,0.69,189.56,189.5,0.52770448]
[1760873798456,5.27565286,189.55,189.5,0.52770448]
[1760873798655,5.96565286,189.55,189.5,1.24770448]
[1760873799762,0.69,189.55,189.5,1.24770448]
[1760873800951,5.2759312,189.54,189.5,1.24770448]
[1760873801149,5.2759312,189.54,189.51,0.72]
[1760873801367,5.27565591,189.55,189.52,1.24764879]
[1760873801569,5.27565591,189.55,189.52,0.52764879]
[1760873801745,5.27565591,189.55,189.52,1.24764879]
[1760873802345,5.27565591,189.55,189.52,0.52764879]
[1760873802561,5.27565591,189.55,189.52,0.72]
[1760873802768,5.27565591,189.55,189.52,62.12]
[1760873802968,5.27537455,189.56,189.52,62.64764879]
[1760873803161,0.69,189.55,189.52,61.4]
[1760873803561,18.46381092,189.56,189.52,61.4]
[1760873803761,0.68,189.54,189.52,61.4]
[1760873804371,0.68,189.53,189.52,61.4]
[1760873804872,5.95620957,189.53,189.52,61.4]
[1760873806075,5.27620957,189.53,189.52,61.4]
[1760873806254,5.27565286,189.55,189.52,62.59764879]
[1760873806580,5.27565286,189.55,189.52,61.92764879]
[1760873806754,0.68,189.54,189.52,61.4]
[1760873806949,5.27565286,189.55,189.52,61.4]
[1760873807255,5.95565286,189.55,189.52,61.4]
[1760873807684,19.14478501,189.55,189.52,61.4]
[1760873809566,19.14186305,189.58,189.52,62.07]
[1760873809952,19.14186305,189.58,189.53,1.19762095]
[1760873810559,18.46186305,189.58,189.54,0.67]
[1760873810766,18.46186305,189.58,189.55,1.19756528]
[1760873810974,0.68,189.57,189.55,0.52756528]
[1760873811152,0.68,189.57,189.54,0.52759312]
[1760873811555,19.14381092,189.56,189.53,88.24]
[1760873811867,0.68,189.55,189.51,61.4]
[1760873812358,0.68,189.54,189.51,61.4]
[1760873812970,19.14381092,189.56,189.51,61.4]
[1760873813176,0.68,189.55,189.51,61.4]
[1760873813976,0.68,189.54,189.51,61.4]
[1760873815066,5.27620957,189.53,189.51,61.4]
[1760873815263,5.95620957,189.53,189.51,61.4]
[1760873815578,19.14673349,189.53,189.5,61.4]
[1760873816169,18.46673349,189.53,189.5,61.4]
[1760873817185,13.19052392,189.53,189.5,61.4]
[1760873817380,13.19052392,189.53,189.5,62.07]
[1760873817884,13.19052392,189.53,189.5,61.4]
[1760873818081,13.19052392,189.53,189.51,0.67]
[1760873818989,13.19052392,189.53,189.5,61.4]
[1760873819175,13.19052392,189.53,189.5,62.07]
[1760873819691,13.19052392,189.53,189.51,0.67]
[1760873820062,13.19052392,189.53,189.5,61.4]
[1760873820289,0.68,189.52,189.5,61.4]
[1760873820784,0.68,189.51,189.5,61.4]
[1760873821503,13.19052392,189.53,189.5,61.4]
[1760873821684,0.68,189.52,189.5,34.73457943]
[1760873821876,13.19052392,189.53,189.5,34.73457943]
[1760873822185,13.19052392,189.53,189.5,35.40457943]
[1760873822395,18.46673349,189.53,189.5,34.73457943]